[Event "US Masters 2024"]
[Site "Charlotte"]
[Date "2024.11.30"]
[Round "6.12"]
[White "Park, Evan"]
[Black "Moradiabadi, Elshan"]
[Result "1-0"]
[ECO "C50"]
[WhiteElo "2375"]
[BlackElo "2515"]
[Annotator "TA"]
[PlyCount "93"]
[EventDate "2024.09.23"]
[EventType "swiss"]
[EventCountry "USA"]
[SourceTitle "playchess.com"]
[Source "ChessBase"]
[SourceQuality "1"]
[TimeControl "5400+30"]

{[%evp 10,93,33,13,25,27,28,36,68,74,58,62,56,52,56,53,63,75,73,62,64,75,78,33,36,0,0,0,0,0,0,0,0,0,131,125,118,131,123,116,132,132,126,105,128,122,125,131,145,139,133,138,148,92,92,94,95,95,89,70,68,72,45,56,234,221,225,222,287,290,307,285,336,343,524,440,410,410,720,521,686,685,906,1089,1412,960]} 1. e4 {[%emt 0:00:03]} e5 {[%emt 0:05:21]} 2. Nf3 {[%emt 0:00:01]} Nc6 {[%emt 0:00:09]} 3. Bc4 {[%emt 0:00:02]} Bc5 {[%emt 0:00:26]} 4. d3 {[%emt 0:00:23]} h6 {[%emt 0:00:46]} 5. c3 {[%emt 0:00:27]} d6 {[%emt 0:00:39]} 6. O-O {[%emt 0:00:30] C50: Hungarian Defence and Giuoco Pianissimo.} Bb6 {[%emt 0:00:13]} 7. a4 {[%emt 0:04:19] 7.Re1 is setting a new trend.} a6 {[%emt 0:01:12]} 8. Be3 {[%emt 0:00:15]} Nge7 $146 {[%emt 0:00:46]} ({Predecessor:} 8... Nf6 9. Bxb6 cxb6 10. Nbd2 O-O 11. Re1 Qc7 12. Nf1 Ne7 13. Ne3 Bd7 14. Nd2 Bc6 {0-1 Saric,I (2673)-Aravindh,C (2698) EU-Cup 39th Vrnjacka Banja 2024 (4.4)}) 9. Bxb6 {[%emt 0:05:19]} cxb6 {[%emt 0:00:06]} 10. Nbd2 {[%emt 0:00:26]} O-O {[%emt 0:00:32]} 11. Re1 {[%emt 0:02:48]} Kh8 {[%emt 0:06:08]} 12. Bb3 {[%emt 0:08:11]} f5 {[%emt 0:02:58]} 13. Ng5 {[%emt 0:08:08]} Qe8 {[%emt 0:06:11]} 14. Ne6 {[%emt 0:01:01]} Bxe6 {[%emt 0:00:23]} 15. Bxe6 {[%emt 0:00:02]} Qg6 {[%emt 0:17:43]} 16. Bb3 {[%emt 0:04:13]} Rad8 {[%emt 0:04:58]} 17. Nc4 {[%emt 0:08:35]} fxe4 $1 {[%emt 0:13:25]} 18. dxe4 {[%emt 0:00:19]} d5 $1 {[%emt 0:00:01]} 19. exd5 {[%emt 0:02:40]} (19. Nxb6 dxe4 20. Nd5 Qf7 21. Nxe7 Qxf2+ 22. Kh1 Nxe7 $17) 19... Nxd5 {[%emt 0:00:01]} 20. Qc2 {[%emt 0:08:24]} Qg5 {[%emt 0:01:18]} 21. Qe4 {[%emt 0:01:57]} Rf4 {[%emt 0:04:29]} (21... Nf4 $11 {remains equal.} 22. Re3 b5 23. axb5 (23. Nxe5 $2 Nxe5 24. Bc2 Neg6 $19) 23... axb5) 22. Nxe5 $1 $16 {[%emt 0:01:07]} Rxe4 {[%emt 0:06:06]} 23. Nf7+ {[%emt 0:00:06]} Kg8 {[%emt 0:00:00]} 24. Nxg5 {[%emt 0:00:04]} Rxe1+ {[%emt 0:00:03]} 25. Rxe1 {[%emt 0:00:02]} hxg5 {[%emt 0:00:03]} 26. Rd1 {[%emt 0:00:06]} Nce7 {[%emt 0:00:10] [#]} 27. c4 $1 {[%emt 0:00:10]} Kf7 {[%emt 0:00:02]} 28. cxd5 {[%emt 0:00:03]} Kf6 {[%emt 0:00:13]} 29. g3 {[%emt 0:05:35]} Nf5 {[%emt 0:01:21]} 30. Kg2 {[%emt 0:01:25]} Nd6 {[%emt 0:00:40]} 31. Kf3 {[%emt 0:03:48]} (31. Re1 $142) 31... Re8 $16 {[%emt 0:02:06]} 32. Rd3 {[%emt 0:00:49]} Re4 {[%emt 0:07:51]} 33. Re3 {[%emt 0:04:39]} g4+ {[%emt 0:00:08]} 34. Ke2 {[%emt 0:00:05]} Ke5 {[%emt 0:00:00]} 35. Kd3 {[%emt 0:03:44]} Rxe3+ {[%emt 0:01:34]} 36. Kxe3 {[%emt 0:02:04]} Ne4 $2 {[%emt 0:00:54]} (36... b5 $14) 37. Bd1 $18 {[%emt 0:02:54]} Nf6 {[%emt 0:00:06] [#]} 38. d6 $1 {[%emt 0:00:39]} Kxd6 {[%emt 0:05:55]} 39. Kf4 {[%emt 0:01:32]} Nd7 {[%emt 0:07:37]} 40. Kxg4 {[%emt 0:02:26]} (40. Bxg4 Nc5 $18) 40... Ke6 {[%emt 0:00:16]} 41. Kg5 {[%emt 0:00:19]} Kf7 {[%emt 0:00:21]} (41... Ke7 {was necessary.} 42. Kg6 Kf8) 42. Bb3+ {[%emt 0:00:38]} Ke7 {[%emt 0:00:03]} 43. Bd5 {[%emt 0:04:05]} Nc5 {[%emt 0:00:03]} (43... b5 $142 44. Kg6 (44. Bxb7 Nc5 $18) (44. axb5 axb5 45. Bxb7 Nc5 $18) 44... Kf8) 44. Kg6 $18 {[%emt 0:00:39]} Kf8 {[%emt 0:00:47]} 45. b3 {[%emt 0:00:09]} b5 {[%emt 0:00:09]} 46. a5 {[%emt 0:00:35]} b4 {[%emt 0:00:14]} 47. f4 {[%emt 0:00:16]} 1-0

[Event "US Masters 2024"]
[Site "Charlotte"]
[Date "2024.11.30"]
[Round "6.13"]
[White "Mishra, Abhimanyu"]
[Black "Preotu, Razvan"]
[Result "1/2-1/2"]
[ECO "E60"]
[WhiteElo "2616"]
[BlackElo "2475"]
[Annotator "RC"]
[PlyCount "133"]
[EventDate "2024.09.23"]
[EventType "swiss"]
[EventCountry "USA"]
[SourceTitle "playchess.com"]
[Source "ChessBase"]
[SourceQuality "1"]
[TimeControl "5400+30"]

1. d4 {[%emt 0:00:02]} Nf6 {[%emt 0:02:02]} 2. c4 {[%emt 0:00:13]} g6 {[%emt 0:00:10]} 3. f3 {[%emt 0:00:30]} Nc6 {[%emt 0:01:49]} 4. d5 {[%emt 0:01:35]} Ne5 {[%emt 0:00:06]} 5. e4 {[%emt 0:01:07]} d6 {[%emt 0:00:09]} 6. Nc3 {[%emt 0:00:23]} Bg7 {[%emt 0:00:06]} 7. f4 {[%emt 0:02:01]} Ned7 {[%emt 0:00:06]} 8. Nh3 {[%emt 0:00:15]} O-O {[%emt 0:00:06]} 9. Be2 {[%emt 0:01:51]} c6 {[%emt 0:00:38]} 10. Nf2 {[%emt 0:08:03]} cxd5 {[%emt 0:00:13]} 11. cxd5 {[%emt 0:00:10]} b5 {[%emt 0:02:23]} 12. Bxb5 {[%emt 0:10:22]} Nc5 {[%emt 0:00:58]} 13. Bc6 {[%emt 0:08:24]} Rb8 {[%emt 0:00:22]} 14. O-O {[%emt 0:03:35]} Ba6 {[%emt 0:00:04]} 15. Re1 {[%emt 0:03:27]} Nfd7 {[%emt 0:00:05]} 16. Qc2 {[%emt 0:12:04]} Qb6 {[%emt 0:14:49]} 17. Rd1 {[%emt 0:02:56]} Bb7 {[%emt 0:11:27]} 18. Be3 {[%emt 0:06:19]} Bxc6 {[%emt 0:00:17]} 19. dxc6 {[%emt 0:00:11]} Qxc6 {[%emt 0:00:47]} 20. Rac1 {[%emt 0:06:54]} Qb7 {[%emt 0:28:54]} 21. Nd5 {[%emt 0:05:07]} Nb6 {[%emt 0:00:06]} 22. Bxc5 {[%emt 0:01:46]} dxc5 {[%emt 0:01:36]} 23. Nxb6 {[%emt 0:03:35]} axb6 {[%emt 0:03:28]} 24. e5 {[%emt 0:00:26]} f6 {[%emt 0:02:32]} 25. f5 {[%emt 0:03:37]} fxe5 {[%emt 0:00:36]} 26. fxg6 {[%emt 0:01:22]} Bh6 {[%emt 0:03:19]} 27. Qb3+ {[%emt 0:12:21]} Kg7 {[%emt 0:00:06]} 28. Qh3 {[%emt 0:01:36]} hxg6 {[%emt 0:00:20]} 29. Rd7 {[%emt 0:02:00]} Bxc1 {[%emt 0:00:04]} 30. Rxb7 {[%emt 0:00:10]} Rxb7 {[%emt 0:00:03]} 31. Qc3 {[%emt 0:00:29]} Bg5 {[%emt 0:00:32]} 32. Ne4 {[%emt 0:00:59]} Rd7 {[%emt 0:01:04]} 33. g3 {[%emt 0:00:13]} Bf6 {[%emt 0:00:25]} 34. Qf3 {[%emt 0:01:32]} Rd4 {[%emt 0:00:51]} 35. Kg2 {[%emt 0:01:11]} Bg5 {[%emt 0:06:53]} 36. Qe2 {[%emt 0:00:15]} Bc1 {[%emt 0:03:13]} 37. h4 {[%emt 0:00:10]} Rf5 {[%emt 0:00:20]} 38. b3 {[%emt 0:00:49]} b5 {[%emt 0:00:45]} 39. Kh3 {[%emt 0:00:24]} c4 {[%emt 0:00:20]} 40. bxc4 {[%emt 0:00:16]} bxc4 {[%emt 0:00:05]} 41. a4 {[%emt 0:00:46]} c3 {[%emt 0:07:59]} 42. Nxc3 {[%emt 0:00:22]} e4 {[%emt 0:00:05]} 43. Nxe4 {[%emt 0:01:26]} Re5 {[%emt 0:00:09]} 44. Qc2 {[%emt 0:00:04]} Rexe4 {[%emt 0:00:19]} 45. Qxc1 {[%emt 0:00:04]} Rxa4 {[%emt 0:00:06]} 46. h5 {[%emt 0:00:59]} Ra6 {[%emt 0:04:27]} 47. Qc3+ {[%emt 0:00:17]} Rf6 {[%emt 0:00:06]} 48. hxg6 {[%emt 0:00:34]} Ree6 {[%emt 0:00:27]} 49. Qd4 {[%emt 0:00:32]} Kxg6 {[%emt 0:00:15]} 50. Qd3+ {[%emt 0:00:08]} Kg7 {[%emt 0:00:05]} 51. Qd4 {[%emt 0:00:09]} Rd6 {[%emt 0:00:36]} 52. Qc3 {[%emt 0:00:14]} Rd5 {[%emt 0:00:36]} 53. Qb2 {[%emt 0:00:42]} Rg5 {[%emt 0:00:24]} 54. Qb7 {[%emt 0:01:26]} Re6 {[%emt 0:00:20]} 55. Qc7 {[%emt 0:00:51]} Rgg6 {[%emt 0:01:18]} 56. Qc3+ {[%emt 0:00:13]} Kh7 {[%emt 0:00:12]} 57. Qf3 {[%emt 0:00:25]} Ref6 {[%emt 0:01:10]} 58. Qe4 {[%emt 0:00:06]} Rf7 {[%emt 0:00:33]} 59. Qd3 {[%emt 0:00:45]} Rfg7 {[%emt 0:00:12]} 60. Qe4 {[%emt 0:00:38]} Kh8 {[%emt 0:00:15]} 61. Qa8+ {[%emt 0:00:46]} Rg8 {[%emt 0:00:09]} 62. Qa1+ {[%emt 0:00:32]} Kh7 {[%emt 0:00:22]} 63. Qe5 {[%emt 0:00:12]} Rxg3+ {[%emt 0:01:59]} 64. Qxg3 {[%emt 0:00:20]} Rxg3+ {[%emt 0:00:04]} 65. Kxg3 {[%emt 0:00:04]} Kg7 {[%emt 0:00:05]} 66. Kf3 {[%emt 0:00:18]} Kf7 {[%emt 0:00:03]} 67. Ke3 {[%emt 0:00:12]} 1/2-1/2

[Event "US Masters 2024"]
[Site "Charlotte"]
[Date "2024.11.30"]
[Round "6.14"]
[White "Bortnyk, Olexandr"]
[Black "Salinas Herrera, Pablo"]
[Result "1-0"]
[ECO "C47"]
[WhiteElo "2603"]
[BlackElo "2475"]
[Annotator "TA"]
[PlyCount "85"]
[EventDate "2024.09.23"]
[EventType "swiss"]
[EventCountry "USA"]
[SourceTitle "playchess.com"]
[Source "ChessBase"]
[SourceQuality "1"]
[TimeControl "5400+30"]

{[%evp 9,85,15,12,-6,-9,-16,-3,-14,0,-35,-23,-18,16,0,1,-4,-19,0,0,0,0,0,0,0,0,0,0,-16,0,-37,-23,-45,-22,-29,0,-4,-7,-13,0,-23,16,0,0,-32,0,-52,-58,-59,-18,-39,-32,-130,-46,-36,107,114,261,82,99,92,91,98,143,147,144,144,146,146,149,149,154,108,108,108,157,157,157,157]} 1. e4 {[%emt 0:00:44]} e5 {[%emt 0:00:06]} 2. Nf3 {[%emt 0:00:28]} Nc6 {[%emt 0:00:10]} 3. Nc3 {[%emt 0:02:59]} Nf6 {[%emt 0:00:09]} 4. h3 {[%emt 0:00:07]} h6 {[%emt 0:07:06]} 5. Bb5 {[%emt 0:07:58]} Bd6 {[%emt 0:00:11]} 6. d4 {[%emt 0:09:14]} exd4 {[%emt 0:03:05]} 7. Nxd4 {[%emt 0:00:46]} O-O {[%emt 0:00:42]} 8. O-O {[%emt 0:02:38] The position is equal.} Re8 {[%emt 0:00:50]} 9. Nxc6 {[%emt 0:04:00]} bxc6 {[%emt 0:00:15]} 10. Bd3 {[%emt 0:00:04]} Bb4 {[%emt 0:05:59]} 11. Re1 {[%emt 0:06:34] Black should prevent e5.} d5 {[%emt 0:07:59]} 12. exd5 {[%emt 0:02:51]} (12. Qf3 {is more complex.} Bxc3 13. bxc3 Nxe4 14. Bxe4 Rxe4 15. Rxe4 dxe4 16. Qxe4 Qd5 17. Qxd5 cxd5 18. Rb1) 12... Rxe1+ {[%emt 0:04:15]} 13. Qxe1 {[%emt 0:00:06]} cxd5 {[%emt 0:00:07]} 14. Bd2 {[%emt 0:01:09][%cal Oc3d5]} Rb8 {[%emt 0:03:45]} 15. a3 {[%emt 0:04:16]} Bf8 {[%emt 0:00:18]} 16. b3 {[%emt 0:02:14]} c5 {[%emt 0:02:09]} 17. Bf4 {[%emt 0:01:29]} Rb6 {[%emt 0:00:10]} 18. Rd1 {[%emt 0:02:50][%cal Oc3d5]} Bb7 {[%emt 0:02:15]} 19. Qf1 {[%emt 0:07:12]} Nh5 {[%emt 0:06:20]} 20. Bc1 {[%emt 0:42:51][%cal Oc3d5]} Qh4 {[%emt 0:01:23]} 21. Ne2 {[%emt 0:00:00]} Bc8 {[%emt 0:16:07]} 22. g4 {[%emt 0:00:00]} Nf6 {[%emt 0:19:28] ...h5 is the strong threat.} 23. Bf4 {[%emt 0:00:00] Bg3 would now be deadly.} Ne8 {[%emt 0:01:12]} 24. Bg3 {[%emt 0:00:00]} Qg5 {[%emt 0:01:25]} 25. Nf4 {[%emt 0:00:00][%cal Of4d5] Threatens to win with Nxd5!} Bb7 {[%emt 0:01:00]} 26. Qe1 {[%emt 0:00:00]} Nd6 {[%emt 0:01:12]} 27. Ng2 {[%emt 0:00:00]} (27. Bf1 $11) 27... d4 $15 {[%emt 0:01:03]} 28. Qe5 {[%emt 0:00:00]} Qd8 {[%emt 0:01:41]} (28... Ne4 {simplifies} 29. Bxe4 Qxe5 30. Bxe5 Bxe4 31. Ne1 f6) 29. Re1 {[%emt 0:00:00]} Qc8 {[%emt 0:01:45]} 30. Nh4 {[%emt 0:00:00]} (30. Qe2 $1 $15) 30... Qc6 {[%emt 0:01:30]} (30... g5 $1 $17 {[%cal Rg5h4]} 31. Ng2 (31. Nf5 $2 Qc6 $19) 31... Qc6) 31. f3 $1 {[%emt 0:00:00]} g5 {[%emt 0:01:00]} (31... c4 $15 {stays ahead.} 32. bxc4 Nxc4) 32. Qf6 $1 $16 {[%emt 0:00:00][%cal Og3e5] Be5! would kill now.} Ne8 {[%emt 0:04:57] [#]} (32... gxh4 33. Be5 Qxf3 34. Qh8#) (32... Ne4 $16 {is a better defense.} 33. Qxc6 Bxc6 34. fxe4 (34. Bxe4 Bxe4 35. Rxe4 gxh4 $14) 34... gxh4 35. Bxh4 Bb5) 33. Bh7+ $2 {[%emt 0:00:00]} Kxh7 {[%emt 0:00:04]} 34. Qxf7+ {[%emt 0:00:00]} Ng7 {[%emt 0:00:18]} 35. Qxf8 {[%emt 0:00:00][%cal Og3e5] Strongly threatening Be5! White is much more active.} Qf6 {[%emt 0:01:21]} (35... gxh4 $2 36. Be5 Qd7 (36... Qxf3 37. Qxg7#) 37. Bxg7 Qxg7 38. Re7 $18 (38. Qxc5 $2 Rf6 $19)) 36. Qxf6 {[%emt 0:00:00]} (36. Qxc5 $2 gxh4 37. Re7 hxg3 $19) 36... Rxf6 {[%emt 0:00:03] [#]} 37. Re7 $1 $36 {[%emt 0:00:00][%mdl 2048] Keeping Black busy.} (37. Be5 $6 Rf7 38. Ng2 (38. Bxg7 gxh4 39. Be5 Rxf3 $11) 38... Rxf3 $14) 37... Bd5 {[%emt 0:01:06]} (37... gxh4 $2 {loses.} 38. Be5 Rg6 39. Rxb7 $18) 38. Nf5 {[%emt 0:00:00]} Rf7 {[%emt 0:00:04]} 39. Rxf7 {[%emt 0:00:00]} Bxf7 {[%emt 0:00:04]} 40. Nxg7 {[%emt 0:00:00]} (40. Nd6 $142 d3 41. cxd3 (41. Nxf7 $2 {is the wrong capture.} dxc2 42. Kh2 c1=Q $19) 41... Bxb3 42. Ne4) 40... Kxg7 {[%emt 0:00:04]} 41. Bd6 {[%emt 0:00:00]} c4 {[%emt 0:03:22]} ({Black should play} 41... Bg6) 42. Be5+ {[%emt 0:00:00]} Kg6 {[%emt 0:00:03] [#]} 43. bxc4 $1 {[%emt 0:00:00] Weighted Error Value: White=0.23 (precise) /Black=0.23 (precise) .  Missed win:     	White=1     	---        Mistake:       	White=3     	Black=4      Inaccurate:     	White=3     	Black=5      OK:         	White=12    	Black=12     Best:        	White=1     	Black=2      Strong:       	White=4     	---} ({But not} 43. Bxd4 a6 44. b4 Bd5) 1-0

[Event "US Masters 2024"]
[Site "Charlotte"]
[Date "2024.11.30"]
[Round "6.15"]
[White "Daggupati, Balaji"]
[Black "Jacobson, Brandon"]
[Result "1/2-1/2"]
[ECO "B51"]
[WhiteElo "2465"]
[BlackElo "2583"]
[Annotator "TA"]
[PlyCount "117"]
[EventDate "2024.09.23"]
[EventType "swiss"]
[EventCountry "USA"]
[SourceTitle "playchess.com"]
[Source "ChessBase"]
[SourceQuality "1"]
[TimeControl "5400+30"]

{[%evp 32,117,-30,-20,-26,-38,-39,-22,-22,-29,-21,-30,-25,-21,-12,-22,-4,-14,-10,-1,0,0,0,-8,-5,-8,-5,-10,-3,-11,0,0,0,0,0,0,0,0,0,0,0,0,0,0,0,0,0,0,0,0,0,-12,0,-12,-10,-12,-8,-11,-8,-25,-6,-16,0,0,0,-14,0,0,0,0,0,0,0,-24,-8,-8,0,0,0,-16,-4,-22,0,0,0,0,0,0]} 1. e4 {[%emt 0:00:12]} c5 {[%emt 0:09:35]} 2. Nf3 {[%emt 0:00:06]} Nc6 {[%emt 0:00:07]} 3. Bb5 {[%emt 0:00:07]} d6 {[%emt 0:00:25]} 4. d4 {[%emt 0:00:30]} cxd4 {[%emt 0:00:15]} 5. Qxd4 {[%emt 0:00:12]} a6 {[%emt 0:00:45]} 6. Bxc6+ {[%emt 0:00:07]} bxc6 {[%emt 0:00:04]} 7. O-O {[%emt 0:02:52]} e5 {[%emt 0:00:33]} 8. Qd3 {[%emt 0:00:06]} Ne7 $1 {[%emt 0:11:50][%mdl 4] outshines the older 8...Be7. B51: Sicilian: Moscow Variation (3 Bb5+) without 3...Bd7.} 9. Rd1 {[%emt 0:09:56]} Ng6 {[%emt 0:00:11]} 10. Na3 {[%emt 0:00:32]} f6 {[%emt 0:22:12]} 11. Nc4 {[%emt 0:12:01]} d5 {[%emt 0:01:10]} 12. exd5 {[%emt 0:16:37]} cxd5 {[%emt 0:00:07]} 13. Qb3 {[%emt 0:01:08]} Be6 {[%emt 0:21:06]} 14. Nb6 $146 {[%emt 0:06:58]} ({Predecessor:} 14. Ne3 Nf4 15. Nxd5 Nxd5 16. c4 Bd6 17. cxd5 Bd7 18. Nd2 Rb8 19. Qg3 O-O 20. Nc4 {0-1 Estrada Nieto,J (2260)-Gascon del Nogal,J (2458) Titled Tuesday intern op 20th Sep Late blitz 2022 (8)}) 14... Rb8 {[%emt 0:00:09]} 15. Qa4+ {[%emt 0:02:46]} Kf7 {[%emt 0:00:06]} 16. Nxd5 {[%emt 0:00:54]} Bxd5 {[%emt 0:02:19]} 17. c4 {[%emt 0:00:29]} (17. Qxa6 $2 Qd7 18. Qe2 Qc6 $19) 17... Rb4 {[%emt 0:00:04]} 18. Rxd5 {[%emt 0:00:19]} Qxd5 {[%emt 0:00:24]} 19. Qxb4 {[%emt 0:00:07]} (19. Qxa6 $2 Qd1+) 19... Bxb4 {[%emt 0:00:10]} 20. cxd5 {[%emt 0:00:04]} Ne7 {[%emt 0:00:47]} 21. Bd2 {[%emt 0:01:50]} Nxd5 {[%emt 0:00:47]} 22. Rc1 {[%emt 0:03:20]} Rb8 {[%emt 0:09:24]} 23. Rc2 {[%emt 0:07:17]} e4 {[%emt 0:05:55]} 24. Nd4 {[%emt 0:01:36]} Bxd2 {[%emt 0:00:16]} 25. Rxd2 {[%emt 0:00:06]} Rc8 {[%emt 0:07:31]} 26. g3 {[%emt 0:01:21]} g6 {[%emt 0:01:31]} 27. Re2 {[%emt 0:08:21]} Rc4 {[%emt 0:02:19]} 28. Nc2 {[%emt 0:04:45]} (28. Rxe4 f5 29. Rh4 g5 30. Rxh7+ Kg6 $19) 28... f5 {[%emt 0:00:23]} 29. Rd2 {[%emt 0:01:36]} Ke6 {[%emt 0:00:17]} 30. f3 {[%emt 0:00:14]} Rc8 {[%emt 0:03:04]} 31. Kf2 {[%emt 0:01:50]} Nf6 {[%emt 0:01:08]} 32. Nd4+ {[%emt 0:01:11]} Kf7 {[%emt 0:00:23]} 33. Ne2 {[%emt 0:01:14]} Ke6 {[%emt 0:00:47]} 34. Rd4 {[%emt 0:03:36]} exf3 {[%emt 0:00:47]} 35. Kxf3 {[%emt 0:00:36]} Ng4 {[%emt 0:00:08]} 36. Nf4+ {[%emt 0:02:24]} Ke7 {[%emt 0:00:01]} 37. Rd2 {[%emt 0:00:49]} Rc1 {[%emt 0:00:19]} 38. Nd5+ {[%emt 0:01:42]} Ke6 {[%emt 0:00:11]} 39. Nf4+ {[%emt 0:00:11]} Ke7 {[%emt 0:00:01]} 40. Nd5+ {[%emt 0:00:04]} Kf7 {[%emt 0:00:26]} 41. Re2 {[%emt 0:04:46]} Rc5 {[%emt 0:00:02]} 42. Nc3 {[%emt 0:00:45]} Kf6 {[%emt 0:01:08]} 43. h3 {[%emt 0:01:07]} Ne5+ {[%emt 0:00:02]} 44. Ke3 {[%emt 0:00:03]} Ke6 {[%emt 0:00:45]} 45. a3 {[%emt 0:01:57]} g5 {[%emt 0:00:14]} 46. Kf2 {[%emt 0:01:35]} h5 {[%emt 0:00:42]} 47. Rd2 {[%emt 0:00:19]} Nc4 {[%emt 0:00:46]} 48. Re2+ {[%emt 0:00:03]} Kf6 {[%emt 0:01:19]} 49. b4 {[%emt 0:01:37]} Re5 {[%emt 0:00:51]} 50. Na4 {[%emt 0:00:01]} Rd5 {[%emt 0:01:07]} (50... Nxa3 51. Ra2 Nb5 52. Nc5) 51. Nc5 {[%emt 0:02:26]} a5 {[%emt 0:00:01]} 52. Nb3 {[%emt 0:00:26]} axb4 {[%emt 0:00:49]} ({Much weaker is} 52... Nxa3 $6 53. bxa5 (53. Nxa5 Rd4 $11) 53... Rd7 54. a6 $16) 53. axb4 {[%emt 0:00:01]} Ne5 {[%emt 0:00:30]} 54. Nc5 {[%emt 0:00:13]} Rd4 {[%emt 0:00:10]} 55. Rb2 {[%emt 0:00:30]} Rc4 {[%emt 0:00:05]} 56. Rd2 {[%emt 0:01:06]} Rxb4 {[%emt 0:01:22]} 57. Rd6+ $1 {[%emt 0:00:01]} Kf7 {[%emt 0:00:07]} 58. Rd5 $1 {[%emt 0:01:01]} Rb2+ {[%emt 0:00:07]} 59. Ke3 {[%emt 0:00:51]} 1/2-1/2

[Event "US Masters 2024"]
[Site "Charlotte"]
[Date "2024.11.30"]
[Round "6.17"]
[White "Vazquez, Guillermo"]
[Black "Narayanan, Samrug"]
[Result "0-1"]
[ECO "A07"]
[WhiteElo "2569"]
[BlackElo "2413"]
[Annotator "RC"]
[PlyCount "146"]
[EventDate "2024.09.23"]
[EventType "swiss"]
[EventCountry "USA"]
[SourceTitle "playchess.com"]
[Source "ChessBase"]
[SourceQuality "1"]
[TimeControl "5400+30"]

1. Nf3 {[%emt 0:00:25]} Nf6 {[%emt 0:00:05]} 2. g3 {[%emt 0:00:28]} d5 {[%emt 0:00:06]} 3. Bg2 {[%emt 0:00:08]} e6 {[%emt 0:00:05]} 4. O-O {[%emt 0:01:17]} Be7 {[%emt 0:00:10]} 5. d3 {[%emt 0:03:15]} O-O {[%emt 0:00:11]} 6. Nbd2 {[%emt 0:00:06]} Nc6 {[%emt 0:00:15]} 7. d4 {[%emt 0:03:00]} Na5 {[%emt 0:02:43]} 8. a3 {[%emt 0:06:12]} b6 {[%emt 0:07:33]} 9. b4 {[%emt 0:04:28]} Nc6 {[%emt 0:02:21]} 10. c4 {[%emt 0:03:40]} a5 {[%emt 0:02:34]} 11. b5 {[%emt 0:02:01]} Na7 {[%emt 0:00:08]} 12. Rb1 {[%emt 0:22:36]} Bb7 {[%emt 0:06:41]} 13. Ne5 {[%emt 0:00:40]} Nd7 {[%emt 0:07:54]} 14. Nd3 {[%emt 0:02:46]} Rb8 {[%emt 0:03:44]} 15. cxd5 {[%emt 0:02:37]} Bxd5 {[%emt 0:00:11]} 16. e4 {[%emt 0:03:10]} Bb7 {[%emt 0:01:38]} 17. Qb3 {[%emt 0:00:27]} c6 {[%emt 0:05:44]} 18. bxc6 {[%emt 0:02:35]} Nxc6 {[%emt 0:00:55]} 19. Bb2 {[%emt 0:00:12]} Ba6 {[%emt 0:04:18]} 20. Rfc1 {[%emt 0:03:17]} Nc5 {[%emt 0:02:56]} 21. Nxc5 {[%emt 0:06:21]} bxc5 {[%emt 0:00:58]} 22. Qd1 {[%emt 0:00:03]} Nxd4 {[%emt 0:00:35]} 23. Bf1 {[%emt 0:00:08]} Bxf1 {[%emt 0:06:39]} 24. Kxf1 {[%emt 0:00:59]} Qd7 {[%emt 0:08:20]} 25. Kg2 {[%emt 0:03:18]} Rfd8 {[%emt 0:00:40]} 26. a4 {[%emt 0:07:45]} Nc6 {[%emt 0:07:34]} 27. Qg4 {[%emt 0:02:21]} Bf8 {[%emt 0:06:15]} 28. Nc4 {[%emt 0:01:07]} Rb4 {[%emt 0:02:29]} 29. Ra1 {[%emt 0:01:22]} f5 {[%emt 0:03:26]} 30. Qe2 {[%emt 0:05:21]} fxe4 {[%emt 0:01:48]} 31. Ne5 {[%emt 0:00:10]} Qd5 {[%emt 0:03:32]} 32. Nxc6 {[%emt 0:00:13]} Qxc6 {[%emt 0:00:04]} 33. Bc3 {[%emt 0:00:26]} Rxa4 {[%emt 0:01:23]} 34. Rxa4 {[%emt 0:01:43]} Qxa4 {[%emt 0:00:07]} 35. Qa6 {[%emt 0:00:11]} Rd6 {[%emt 0:01:49]} 36. Qxa5 {[%emt 0:00:34]} Qxa5 {[%emt 0:00:33]} 37. Bxa5 {[%emt 0:00:02]} Ra6 {[%emt 0:00:57]} 38. Bd2 {[%emt 0:00:11]} Ra4 {[%emt 0:00:46]} 39. Rb1 {[%emt 0:00:42]} Be7 {[%emt 0:01:05]} 40. Rb8+ {[%emt 0:01:14]} Kf7 {[%emt 0:00:04]} 41. Rb7 {[%emt 0:00:04]} h6 {[%emt 0:01:25]} 42. Bc3 {[%emt 0:02:01]} g5 {[%emt 0:00:28]} 43. Be5 {[%emt 0:00:04]} Ra6 {[%emt 0:00:17]} 44. g4 {[%emt 0:01:20]} Rc6 {[%emt 0:00:41]} 45. Kf1 {[%emt 0:00:04]} c4 {[%emt 0:00:24]} 46. Bc3 {[%emt 0:00:30]} Ke8 {[%emt 0:00:40]} 47. Ra7 {[%emt 0:07:51]} Bd6 {[%emt 0:00:42]} 48. h3 {[%emt 0:00:09]} Bf4 {[%emt 0:02:13]} 49. Ke2 {[%emt 0:00:14]} Rd6 {[%emt 0:01:37]} 50. Bb4 {[%emt 0:02:14]} Rb6 {[%emt 0:03:04]} 51. Ra4 {[%emt 0:02:00]} Kd7 {[%emt 0:01:06]} 52. Bc3 {[%emt 0:00:05]} Rc6 {[%emt 0:00:05]} 53. Ra7+ {[%emt 0:01:13]} Rc7 {[%emt 0:00:29]} 54. Ra8 {[%emt 0:00:53]} Kc6 {[%emt 0:00:13]} 55. Ra6+ {[%emt 0:00:21]} Kd5 {[%emt 0:00:15]} 56. Ra5+ {[%emt 0:00:17]} Kc6 {[%emt 0:01:06]} 57. Ra6+ {[%emt 0:00:03]} Kd5 {[%emt 0:00:09]} 58. Ra5+ {[%emt 0:00:01]} Rc5 {[%emt 0:00:09]} 59. Ra8 {[%emt 0:00:02]} Rc6 {[%emt 0:01:15]} 60. Ra5+ {[%emt 0:00:31]} Kd6 {[%emt 0:00:13]} 61. Ra7 {[%emt 0:00:21]} Rb6 {[%emt 0:00:36]} 62. Kd1 {[%emt 0:00:15]} Rb1+ {[%emt 0:00:13]} 63. Kc2 {[%emt 0:00:05]} Rc1+ {[%emt 0:00:24]} 64. Kb2 {[%emt 0:00:02]} Rf1 {[%emt 0:00:31]} 65. Bd4 {[%emt 0:00:07]} Be5 {[%emt 0:02:54]} 66. Kc3 {[%emt 0:00:50]} Bxd4+ {[%emt 0:00:37]} 67. Kxd4 {[%emt 0:00:03]} Rxf2 {[%emt 0:00:18]} 68. Ra6+ {[%emt 0:00:28]} Ke7 {[%emt 0:00:11]} 69. Rc6 {[%emt 0:00:17]} Kf6 {[%emt 0:00:30]} 70. Kxe4 {[%emt 0:00:29]} Rh2 {[%emt 0:00:15]} 71. Rxc4 {[%emt 0:00:14]} Rxh3 {[%emt 0:00:03]} 72. Rc1 {[%emt 0:01:18]} Rg3 {[%emt 0:00:11]} 73. Rf1+ {[%emt 0:00:05]} Kg6 {[%emt 0:00:06]} 0-1